Cogmind - Beta 16.1 @@@ ROGUE MODE // 2026.02.21 @ 00:38:57 Player: Morrion Result: Destroyed by Autobeam Turret with Autobeam Performance ------------- Evolutions (0) 0 Regions Visited (2) 400 Robots Destroyed (32) 160 Value Destroyed (806) 806 Prototype IDs (4) 80 Alien Tech Used (0) 0 Bonus (0) 0 TOTAL SCORE: 1446 Bonus ------- None Cogmind --------- Core Integrity 0/250 Matter 255/300 Energy 199/200 System Corruption 0% Temperature Cool (6) Movement Treading (160) Location -10/Subcaves Parts ------- > --- POWER (1+1) ------ Subdweller Power Source > --- PROPULSION (2+1) - Improved Treads Armored Wheel (+) > --- UTILITY (2+1) ---- Medium Storage Unit Makeshift Light Armor Plating (+) Rainbow Chip > --- WEAPON (2+1) ----- Battle Rifle Mini Grenade Launcher > --- INVENTORY (10) --- Armored Wheel Weight Redist. System Assault Rifle 1B-0RG's Assimilator Datajack Peak State ------------ > --- POWER ------------ Subdweller Power Source > --- PROPULSION ------- Improved Treads Improved Treads Armored Wheel > --- UTILITY ---------- Medium Storage Unit Makeshift Light Armor Plating Rainbow Chip > --- WEAPON ----------- Mini Grenade Launcher Mini Grenade Launcher > --- INVENTORY -------- Armored Wheel Weight Redist. System Assault Rifle Battle Rifle 1B-0RG's Assimilator Datajack [Rating: 37] Favorites ----------- Power Ion Engine Engine Ion Engine Propulsion Improved Treads Treads Improved Treads Leg Aluminum Leg Wheel Armored Wheel Utility Medium Storage Unit Storage Medium Storage Unit Processor Rainbow Chip Protection Makeshift Light Armor Plating Weapon Mini Grenade Launcher Ballistic Gun Assault Rifle Launcher Mini Grenade Launcher Special Melee Weapon Datajack Build | -11 -10 -10 ------- Run | Yrd Mat Sub Slots Evolved . | . . . Power . | . . . Propulsion . | . . . Utility . | . . . Weapon . | . . . Parts Attached 29 | 6 12 11 Power 7 | 1 3 3 Engine 7 | 1 3 3 Core . | . . . Reactor . | . . . Propulsion 7 | 2 2 3 Treads 4 | . 2 2 Leg 2 | 2 . . Wheel 1 | . . 1 Hover . | . . . Flight . | . . . Utility 5 | 1 2 2 Device . | . . . Storage 2 | 1 1 . Processor 1 | . . 1 Hackware . | . . . Protection 2 | . 1 1 Artifact . | . . . Weapon 10 | 2 5 3 Energy Gun . | . . . Energy Cannon . | . . . Ballistic Gun 5 | 2 2 1 Ballistic Cannon . | . . . Launcher 4 | . 2 2 Special Weapon . | . . . Impact Weapon . | . . . Slashing Weapon . | . . . Piercing Weapon . | . . . Special Melee Weapon 1 | . 1 . Unidentified Prototypes 1 | . . 1 Parts Lost 9 | . . 9 Power 2 | . . 2 Propulsion 3 | . . 3 Utility 1 | . . 1 Weapon 3 | . . 3 Highest Loss Streak 3 | . . 3 To Critical Strikes . | . . . Average Backups 7 | . 8 6 Power . | . . . Propulsion 3 | . 3 2 Utility . | . . 1 Weapon 2 | . 3 1 Tool/Special . | . . . Unused Backups 4 | . 1 3 Power 1 | . 1 . Propulsion 1 | . . 1 Utility 1 | . . 1 Weapon . | . . . Tool/Special 1 | . . 1 Average Slot Usage (%) 84 | . 87 82 Engine 11 | . 13 10 Treads 26 | . 27 25 Wheel 1 | . . 1 Storage 13 | . 14 12 Processor 1 | . . 1 Protection 2 | . 2 2 Ballistic Gun 12 | . 19 9 Launcher 12 | . 6 16 Peak Build Rating 37 | 6 10 37 Average Rating 13 | 4 9 15 On Entrance 5 | . 6 10 Avg Prop Armor Cover (%) 4 | . . 4 Naked Turns . | . . . Heaviest Build 22 | 10 20 22 Greatest Support 46 | 20 46 46 Greatest Overweight (x) 3 | . 3 . Average Overweight (x) . | . . . Largest Inventory Capacity 10 | 8 10 10 Average Capacity 9 | 6 9 10 Most Carried 10 | 3 10 10 Average Carried 7 | . 8 7 Final Capacity 10 | 8 10 10 Final Carried 10 | 1 10 9 Class Distribution -------------------- 100% | Mutant Dominant Class ---------------- Mutant | -10/Materials Mutant | -10/Subcaves Resources | -11 -10 -10 ----------- Run | Yrd Mat Sub Matter Collected 1013 | 246 220 547 Remotely . | . . . Salvage Created 583 | . 321 262 Parts 64 | . 41 23 Haulers Intercepted 1 | . 1 . Recyclers Shooed . | . . . Parts Field Recycled . | . . . Retrieved Matter . | . . . Parts Self-Destructed 9 | . . 9 Prevented . | . . . Parts Restored . | . . . Kills | -11 -10 -10 ------- Run | Yrd Mat Sub Combat Hostiles Destroyed 27 | . 13 14 Guns 4 | . 2 2 AOE 23 | . 11 12 Classes Destroyed 7 | . 6 1 Builder 2 | . 2 . Tunneler 1 | . 1 . Hauler 1 | . 1 . Operator 1 | . 1 . Swarmer 10 | . 6 4 Grunt 7 | . 7 . Subdweller 10 | . . 10 Best Kill Streak 6 | . 6 4 Combat Bots Only 4 | . 4 4 Max Kills in Single Turn 3 | . 3 2 Gunslinging . | . . . Exploded 3 | . 3 2 Melee . | . . . Uniques/NPCs Destroyed . | . . . Combat | -11 -10 -10 -------- Run | Yrd Mat Sub Hostile Shots Fired 101 | . 22 79 Missed 38 | . 10 28 Hits 63 | . 12 51 Projectile 63 | . 12 51 AOE 1 | . . 1 Damage Taken 1507 | . 177 1330 Core 251 | . 23 228 Absorbed by Shields . | . . . Redirected to Shielding 54 | . . 54 Core Remaining (%) 100 | 100 . . Volleys Fired 66 | . 20 46 Largest 2 | . 2 2 Hottest 60 | . 40 60 Shots Fired 82 | . 29 53 Gun 47 | . 18 29 Cannon . | . . . Launcher 35 | . 11 24 Special . | . . . Kinetic 47 | . 18 29 Thermal . | . . . Explosive 35 | . 11 24 Electromagnetic . | . . . Robot Hit Streak 14 | . 8 14 Robot Miss Streak 6 | . 2 6 Penetration Max . | . . . Secondary Targets . | . . . Shots Hit Robots 44 | . 17 27 Core Hits 47 | . 25 22 Critical Kills 1 | . 1 . Critical Parts Destroyed . | . . . Critical Strikes 1 | . 1 . Destroy 1 | . 1 . Melee Attacks 3 | . 3 . Impact . | . . . Slashing . | . . . Piercing . | . . . Sneak Attacks . | . . . Combat Hostiles . | . . . Follow-up Attacks . | . . . Damage Inflicted 2493 | . 998 1495 Guns 291 | . 122 169 Cannons . | . . . Explosions 2195 | . 872 1323 Melee . | . . . Ramming 7 | . 4 3 Kinetic 291 | . 122 169 Thermal . | . . . Explosive 2195 | . 872 1323 Electromagnetic . | . . . Impact . | . . . Slashing . | . . . Piercing . | . . . Highest Corruption . | . . . Average Corruption . | . . . Corruption Purged . | . . . Corruption Blocked . | . . . Overload Shots . | . . . Overflow Damage 24 | . 17 7 Projectiles . | . . . Explosions 24 | . 17 7 Melee . | . . . Knockbacks . | . . . Impact . | . . . Kinetic . | . . . Secondary . | . . . Self-Inflicted Damage 399 | . 22 377 Shots 14 | . 1 13 Rammed 4 | . 1 3 Targets Rammed 5 | . 2 3 Kicked . | . . . Crushed 1 | . 1 . Highest Temperature 18 | . 18 2 Average Temperature 8 | . 9 2 Received Heat Transfer 324 | . 75 249 Siege Activations . | . . . Martial Activations . | . . . Shielding Activations . | . . . Robots Disrupted . | . . . Combat Hostiles . | . . . Robots Corrupted . | . . . Combat Hostiles . | . . . Parts Fried . | . . . Impact Corruptions . | . . . Robots Melted . | . . . Combat Hostiles . | . . . Parts Melted . | . . . Heat Transferred . | . . . Parts Sabotaged . | . . . Parts Stolen . | . . . Parts Stripped . | . . . Power Chain Reactions . | . . . Alert | -11 -10 -10 ------- Run | Yrd Mat Sub Maximum Alert Level 1 | . 1 . Low Security (%) 54 | 100 50 . Level 1 45 | . 49 . Level 2 . | . . . Level 3 . | . . . Level 4 . | . . . Level 5 . | . . . High Security . | . . . Max Security . | . . . Peak Influence 300 | . 300 . Initial . | . . . Average 135 | . 144 . Influence Increases 608 | . 468 140 Destroy 0b10 Robot/C 340 | . 260 80 Destroy 0b10 Robot/NC 25 | . 25 . Destroy Leader 52 | . 52 . Successful Hack 28 | . 28 . Disable Machine 30 | . 30 . Destroy Structure 73 | . 73 . Lose Combat Pursuer 60 | . . 60 Influence Decreases 491 | . 247 244 Entered New Map 107 | . . 107 Time Decay 334 | . 247 87 Lost Part 50 | . . 50 Squads Dispatched 2 | . 2 . Investigation . | . . . Extermination . | . . . Reinforcement 2 | . 2 . Assault . | . . . Garrison . | . . . Intercept . | . . . Searches Triggered . | . . . Construction Impeded . | . . . Haulers Reinforced . | . . . Active Scanning Responses . | . . . Cargo Convoy Interrupts . | . . . Stealth | -11 -10 -10 --------- Run | Yrd Mat Sub Distress Signals . | . . . Communications Jammed . | . . . Distress Signals . | . . . Times Spotted 36 | . 21 15 Peak Tracking Total 6 | . 6 4 Tactical Retreats 1 | . . 1 Traps | -11 -10 -10 ------- Run | Yrd Mat Sub Traps Triggered 2 | . . 2 Indirectly . | . . . Trap Hack Attempts . | . . . Triggered . | . . . Disarmed . | . . . Reprogrammed . | . . . Reused . | . . . Traps Extracted . | . . . Installed . | . . . Triggered . | . . . Machines | -11 -10 -10 ---------- Run | Yrd Mat Sub Machines Disabled 7 | . 2 5 Max in Single Turn 3 | . 1 3 Machines Repaired . | . . . Machines Dismantled . | . . . Machines Sabotaged . | . . . Overloaded Fab Kills . | . . . Hacking | -11 -10 -10 --------- Run | Yrd Mat Sub Machines Accessed 2 | . 2 . Terminals 2 | . 2 . Fabricators . | . . . Repair Stations . | . . . Recycling Units . | . . . Scanalyzers . | . . . Garrison Access . | . . . Total Hacks 14 | . 14 . Successful 10 | . 10 . Failed 4 | . 4 . Catastrophic . | . . . Database Lockouts . | . . . Manual . | . . . Terminals 14 | . 14 . Fabricators . | . . . Repair Stations . | . . . Recycling Units . | . . . Scanalyzers . | . . . Garrison Access . | . . . Terminal Hacks 10 | . 10 . Prototype ID Bank 2 | . 2 . Branch Access Points 1 | . 1 . Alert Level 2 | . 2 . Locate Traps 1 | . 1 . Dispatch Records 1 | . 1 . Maintenance Status 1 | . 1 . Hauler Manifests 1 | . 1 . Zone Layout 1 | . 1 . Fabricator Hacks . | . . . Repair Station Hacks . | . . . Recycling Unit Hacks . | . . . Scanalyzer . | . . . Garrison Access Hacks . | . . . Unauthorized Hacks . | . . . Terminals . | . . . Fabricators . | . . . Repair Stations . | . . . Recycling Units . | . . . Scanalyzers . | . . . Garrison Access . | . . . Data Cores Recovered 1 | . 1 . Used . | . . . Hacking Detections 2 | . 2 . Full Trace Events 1 | . 1 . Feedback Events . | . . . Feedback Blocked . | . . . Robot Schematics Acquired . | . . . Robots Built . | . . . Authchips . | . . . Time . | . . . Total Robot Build Rating . | . . . Part Schematics Acquired . | . . . Parts Built . | . . . Authchips . | . . . Time . | . . . Total Part Build Rating . | . . . Part Studies Acquired . | . . . Parts Repaired . | . . . Time . | . . . Parts Recycled . | . . . Recycled Matter . | . . . Retrieved Matter . | . . . Retrieved Components . | . . . Parts Scanalyzed . | . . . Part Schematics Acquired . | . . . Parts Damaged . | . . . Bothacking | -11 -10 -10 ------------ Run | Yrd Mat Sub Used RIF Installer . | . . . Robots Hacked 2 | . 2 . Non-combat 2 | . 2 . Combat . | . . . Robot Hacks Applied 2 | . 2 . parse_system 2 | . 2 . Relay Couplers Released . | . . . Fabnet Peak Effective % . | . . . Robots Rewired . | . . . Allies Hacked . | . . . Hacks Repelled . | . . . Allies | -11 -10 -10 -------- Run | Yrd Mat Sub Total Allies . | . . . Largest Group . | . . . Highest-Rated Group . | . . . Highest-Rated Ally . | . . . Total Orders . | . . . Ally Attacks . | . . . Total Damage . | . . . Kills . | . . . Allies Corrupted . | . . . Allies Melted . | . . . Intel | -11 -10 -10 ------- Run | Yrd Mat Sub Active Infowar (turns) . | . . . Robot Analysis Total . | . . . Derelict Logs Recovered . | . . . Drone Launches . | . . . Drone Recoveries . | . . . Exploration | -11 -10 -10 ------------- Run | Yrd Mat Sub Turns Passed 2450 | 56 775 1619 Spaces Moved 1380 | 36 421 923 Core 7 | 6 1 . Treads 1339 | . 416 923 Legs 34 | 30 4 . Wheels . | . . . Hover . | . . . Flight . | . . . Fastest Speed 50 | 50 120 160 Average Speed 158 | 108 159 160 Slowest Speed 200 | 120 200 160 Overloaded Moves . | . . . Propulsion Burnouts . | . . . Robots Hopped . | . . . Potential Cave-ins . | . . . Cave-ins Triggered . | . . . Exploration Rate (%) 45 | 3 84 49 Regions Visited 2 Branch Regions 1 Pre-discovered Areas . | . . . Known Exits Taken . | . . . Unknown Exits Taken 2 | 1 1 . Scrap Searched 11 | . . 11 Spaces Dug . | . . . Terrain Destroyed 218 | . 87 131 Melee . | . . . Projectile . | . . . AOE 218 | . 87 131 Terrain Rammed . | . . . Walls Destroyed . | . . . Machines Disabled . | . . . Actions | -11 -10 -10 --------- Run | Yrd Mat Sub Total 1553 | 53 492 1008 Wait 9 | 5 4 . Move 1378 | 35 420 923 Hop . | . . . Pick Up 32 | 7 14 11 Fast Attach 3 | . 3 . Attach 21 | 6 3 12 Detach . | . . . Swap 20 | . 13 7 Drop 16 | . 10 6 Fire 66 | . 20 46 Melee 3 | . 3 . Ram . | . . . Kick . | . . . Crush 5 | . 2 3 Escape Stasis . | . . . Rewire . | . . . Trap . | . . . Miscellaneous . | . . . Route ------- -11/Scrapyard -10/Materials (discovered 6 exits: [*Mat x3] / Min x2 / *Sub) -10/Subcaves History --------- Turn | Location | Event 6 | -11/Scrapyard | Discovered new exit (range 13) 57 | -11/Scrapyard | Entered Materials 317 | -10/Materials | Build established: Mutant 326 | -10/Materials | Discovered new exit (range 15) 581 | -10/Materials | Discovered new exit (range 9) 748 | -10/Materials | Identified exit to Mines 765 | -10/Materials | Discovered new exit (range 11) 767 | -10/Materials | Discovered new exit (range 6) 832 | -10/Materials | Entered Subcaves 952 | -10/Subcaves | Lost 3 parts (1p1u1w) 1046 | -10/Subcaves | Shifting Twisted Machinery released Ripper 1047 | -10/Subcaves | A swath of the cavern ceiling suddenly collapsed 1071 | -10/Subcaves | Shifting Twisted Machinery released Shrapnel Trap 1102 | -10/Subcaves | Core integrity fell below 50% 1380 | -10/Subcaves | Ambushed by Subdweller buried in earth 1606 | -10/Subcaves | Core integrity fell below 20% 2018 | -10/Subcaves | Visited 4L-MR0's lab 2056 | -10/Subcaves | Found Prototype Special Melee Weapon 2103 | -10/Subcaves | Found Prototype Processor 2104 | -10/Subcaves | Identified Rainbow Chip 2105 | -10/Subcaves | Attached Rainbow Chip, gained temporary slots: Power, Propulsion, Utility, Weapon 2451 | -10/Subcaves | Destroyed by Autobeam Turret with Autobeam Last Messages --------------- 02401_ Found Mak. Hacking Suite. 02401_ Found Slug Cannon. 02401_ Found 69 Matter. 02406_ Searching scrap... 02406_ Found Mak. Light Armor Plating. 02406_ Found Shrapnel Trap. 02406_ Found 30 Matter. 02407_ Searching scrap... 02407_ Found Battle Rifle. 02407_ Found 70 Matter. 02412_ Acquired Battle Rifle. 02436_ Mni. Grenade Launcher destroyed. 02437_ S-10 Pest destroyed. 02437_ Machine disabled. 02439_ S-10 Pest destroyed. 02443_ Lgt. Ion Engine fries itself beyond repair. 02447_ Flight Unit fries itself beyond repair. 02449_ Imp. Treads destroyed. 02451_ S-10 Pest destroyed. Map ----- +----------------------------------------------------+ | ?????????????????????????????????????????????????? | | ?????????????????????????????????????????????????? | | ?????????????????????????????????????????????????? | | ?????????????????????????????????????????????????? | | ?????????????????????????????????????????????????? | | ?????????????????????????????????????????????????? | | ?????????????????????????????????????????????????? | | ?????????????????????????????????????????????????? | | ?????????????????????????????????????????????????? | | ?????????????????????????????????????????????????? | | ?????????????????????????????????????????????????? | | ?????????????????????????????????????????????????? | | ?????????????????????????????????????????????????? | | ?????????????????????????????????????????????????? | | ????????????????###??????????????????????????????? | | ???????????????#""""?????????????????????????????? | | ???????????????#" ?????????????????????????????? | | ???????????????# t ????????????????????????????? | | ???????????????# % ???????????????????????????? | | ???????????????# ??????????????????????????## | | ???????????????# % ????????????????????????## | | ???????????????# #???????????????????????# | | ???????????###### % ####???????????????????# | | ???????????# % #??######???????????# | | ???????????# % = #### #?####?????## | | ???????????# !% @ # ### ##???## | | ??????????%& ## ##### # | | ??????????! ## ### | | ??????????? ### #?? | | ??????????? ######## ##?? | | ???????????? ???#&%## ##### | | ???????????? ##?????#% "##< #### ##### # # # | | ?????????????????????##!!] #??## #???# | | ?????????????????????# #%#" #???#### #?## | | ?????????????????????# $### #??????# ## ### | | ?????????????????????####? #????? ####?#### | | ??????????????????????????## ???? #??????? | | ???????????????????????????# ?? ## #?????? | | ??????????????????????????? ?#?? #????? | | ??????????????????????????? #??? ##????? | | ???????????????????????????### ##???# ##?????? | | ??????????????????????????????####?????####??????? | | ?????????????????????????????????????????????????? | | ?????????????????????????????????????????????????? | | ?????????????????????????????????????????????????? | | ?????????????????????????????????????????????????? | | ?????????????????????????????????????????????????? | | ?????????????????????????????????????????????????? | | ?????????????????????????????????????????#######?# | | ?????????????????????????????????????????#"" ""### | +----------------------------------------------------+ Best States ------------- Heat Dissipation 25 Energy Generation 15 Energy Capacity 250 Matter Stores 300 Matter Capacity 300 Sight Range 16 Terrain Scan Density 10 Armor Coverage 100 Propulsion Shielding 33 Evasion (%) 55 Recoil Reduction 2 Item Schematics ----------------- None Robot Schematics ------------------ None Fabricated ------------ Nothing Repaired ---------- Nothing Studied --------- None Alien Tech Used ----------------- None Achievements -------------- Do Not Disturb Mistaken Identity Challenges ------------ None Game ------ Seed CombatInsulatedChronowheel Manual? 0 Play Time 00:31:13 Cumulative 10.2 hours Start 2026.02.18 @ 03:06:19 End 2026.02.21 @ 00:38:57 Sessions 3 Manual Loads 0 Difficulty Rogue Special Mode None Game No. 15 Rogue 11 Adventurer 0 Explorer 4 Win Type - Total 0 Types 0/0/0/0/0/0/0/0/0/0 Lore% 3 Gallery% 17 Achievement% 14 Wizard Run 0 Options --------- Layout 1 ASCII 0 Keyboard 0 Movement Mouse Keybinds 0 Fullscreen 2 Font 24/Smallcaps Map View 50x35 Zoom Use 0% Tactical HUD 1 Map Filters NONE Filters NONE Steam 1 RUN: 7080d5ad-3a89-4c95-879a-8075d4e13715